bitfinex/quotes_ETHUSD_20240710
["timestamp","ask_amount","ask_price","bid_price","bid_amount"]
[1720650552511,0.33649678,3112.6,3112.5,4.915523]
[1720650556726,0.33649678,3112.6,3112.5,1.702673]
[1720650559023,0.33649678,3112.6,3112.5,2.417673]
[1720650560318,0.33649678,3112.6,3112.5,1.702673]
[1720650560517,0.33649678,3112.6,3112.5,1.265]
[1720650571054,2.4899,3113.3,3112.5,1.265]
[1720650571258,0.33648349,3113.1,3112.8,0.715]
[1720650578925,2.3818,3113.0,3111.9,0.66760738]
[1720650579125,0.27182835,3112.9,3112.1,0.715]
[1720650579656,0.27182835,3112.9,3112.3,0.715]
[1720650584668,2.3818,3113.0,3112.7,0.715]
[1720650584857,0.33648349,3113.1,3112.7,0.715]
[1720650586564,0.33648349,3113.1,3112.5,0.715]
[1720650587266,0.715,3112.9,3111.7,1.57077438]
[1720650587463,0.33648349,3113.1,3111.5,2.4988]
[1720650587464,2.4471,3112.6,3111.5,2.4988]
[1720650587631,2.4471,3112.6,3111.7,0.715]
[1720650588035,0.33657601,3112.5,3111.7,0.715]
[1720650588736,0.33657601,3112.5,3111.9,0.715]
[1720650591092,2.4441,3112.4,3111.1,2.97110738]
[1720650591373,0.715,3112.0,3110.9,3.715]
[1720650591532,0.715,3112.0,3111.0,0.60891]
[1720650592744,0.715,3112.0,3111.1,0.55]
[1720650593279,0.715,3112.2,3111.1,1.265]
[1720650601492,2.3714,3112.1,3111.1,1.265]
[1720650601697,3.0864,3112.0,3111.1,1.265]
[1720650604084,2.3802,3111.9,3110.6,3.2148]
[1720650604270,2.3802,3111.9,3110.8,0.715]
[1720650604271,0.715,3111.8,3110.8,0.715]
[1720650604459,0.715,3111.8,3110.9,0.55]
[1720650605297,0.715,3111.6,3110.9,0.55]
[1720650605458,0.95302,3111.8,3110.8,0.715]
[1720650605659,0.95302,3111.8,3110.9,0.55]
[1720650606893,0.23802,3111.8,3110.9,0.55]
[1720650607093,2.3802,3111.9,3110.9,0.55]
[1720650608357,2.3802,3111.9,3111.0,0.715]
[1720650610098,0.7776576,3112.4,3110.3,2.3398]
[1720650610099,0.715,3111.6,3110.3,2.3398]
[1720650610284,2.3576,3111.7,3110.7,0.715]
[1720650610469,2.3576,3111.7,3110.8,2.8898]
[1720650610792,0.30726,3111.6,3110.8,2.8898]
[1720650612786,2.4659,3111.5,3109.9,3.95901975]
[1720650612996,0.715,3111.2,3110.0,0.715]
[1720650613696,0.715,3111.2,3110.2,0.715]
[1720650613895,1.03309,3111.2,3110.2,0.715]
[1720650614204,1.03309,3111.2,3110.0,0.715]
[1720650615083,1.03309,3111.2,3110.2,0.715]
[1720650615284,1.03309,3111.2,3110.1,0.55]
[1720650615665,0.31809,3111.2,3110.1,0.55]
[1720650615866,1.03309,3111.2,3110.1,0.55]
[1720650616211,1.03309,3111.2,3110.2,0.715]
[1720650619297,2.4659,3111.4,3110.2,0.715]
[1720650619605,0.715,3111.3,3110.3,0.55]
[1720650621597,0.715,3111.1,3110.2,0.715]
[1720650629845,2.3385,3111.0,3110.2,0.715]
[1720650631066,3.0535,3111.0,3110.0,0.715]
[1720650631199,0.23385,3110.9,3109.9,2.2802]
[1720650631400,0.23385,3110.9,3109.9,2.9952]
[1720650632143,0.23385,3110.9,3110.1,0.715]
[1720650636437,2.3385,3111.0,3110.1,1.01452]
[1720650645252,2.4611,3111.3,3110.5,2.4426]
[1720650645407,9.9011,3112.0,3111.1,3.21427]
[1720650645610,9.9011,3112.0,3110.9,2.4426]
[1720650645611,2.4611,3112.0,3111.4,0.715]
[1720650645835,2.4611,3112.0,3111.2,0.321427]
[1720650646040,2.4611,3112.0,3111.0,3.0]
[1720650646243,2.4611,3112.0,3111.1,0.55]
[1720650646755,3.1761,3112.0,3111.0,0.715]
[1720650647439,3.1761,3112.0,3110.9,2.4426]
[1720650647628,2.4611,3111.6,3110.7,0.715]
[1720650649334,2.77871,3111.6,3110.7,0.715]
[1720650650120,2.77871,3111.6,3110.1,5.74212]
[1720650650121,2.4611,3111.4,3110.1,2.74212]
[1720650650355,2.4611,3111.4,3110.4,0.715]
[1720650650356,0.715,3111.3,3110.4,0.715]
[1720650650535,2.4611,3111.4,3110.4,0.715]
[1720650652451,2.4611,3111.4,3110.6,0.715]
[1720650652770,2.4611,3111.4,3110.8,0.715]
[1720650654478,2.4611,3111.4,3110.6,0.715]
[1720650656670,0.3813595,3111.3,3110.6,0.715]
[1720650656873,2.4611,3111.4,3110.6,0.715]
[1720650657477,0.38134461,3111.3,3110.6,0.715]
[1720650657650,0.66558907,3111.3,3110.6,0.715]
[1720650657850,0.28424446,3111.3,3110.6,0.715]
[1720650659251,0.28424446,3111.3,3110.1,2.74212]
[1720650659449,0.28424446,3111.3,3110.6,0.715]
[1720650660964,0.28424446,3111.3,3110.8,0.715]
[1720650661356,2.4611,3111.4,3110.8,0.715]
[1720650661787,2.4611,3111.4,3110.6,2.4623]
[1720650661987,2.4611,3111.4,3111.0,0.715]
[1720650663956,2.3426,3111.8,3111.0,0.715]
[1720650666517,3.0,3112.1,3111.2,0.715]
[1720650666518,5.3426,3112.1,3111.2,0.715]
[1720650666812,0.38107451,3112.0,3111.2,0.715]
[1720650667508,0.38107451,3112.0,3111.4,0.715]
[1720650667714,7.44,3112.4,3111.9,0.715]
[1720650667896,2.4611,3112.5,3111.9,0.715]
[1720650668114,2.4611,3112.5,3111.7,0.715]
[1720650668416,0.31761,3112.4,3111.5,0.715]
[1720650670824,2.4611,3112.5,3111.5,0.715]
[1720650671137,0.715,3112.4,3111.5,0.715]
[1720650672129,2.466,3112.3,3111.0,5.4554]
[1720650672431,2.466,3112.3,3111.4,0.715]
[1720650672640,0.3181,3112.2,3111.4,0.715]
[1720650674539,2.466,3112.3,3111.4,0.715]
[1720650675646,2.466,3112.3,3111.6,0.715]
[1720650676855,2.466,3112.3,3111.1,2.3775]
[1720650677008,0.715,3112.2,3111.3,0.715]
[1720650677538,2.466,3112.3,3111.3,0.715]
[1720650677738,0.2466,3112.2,3111.5,0.715]
[1720650678129,2.466,3112.3,3111.7,0.715]
[1720650678330,2.3226,3112.6,3111.7,0.715]
[1720650678532,5.3226,3112.6,3111.7,0.715]
[1720650680241,2.3226,3112.6,3111.9,0.715]
[1720650680716,10.5821,3112.9,3111.9,0.715]
[1720650680918,11.3261,3112.9,3111.9,0.715]
[1720650681342,10.6111,3112.9,3112.0,2.3154]
[1720650681757,10.6111,3112.9,3112.1,0.715]
[1720650682643,0.33657291,3112.8,3112.1,0.715]
[1720650690258,0.6129402,3112.8,3112.1,0.715]
[1720650691473,0.6129402,3112.8,3112.0,2.3154]
[1720650691766,0.6129402,3112.8,3112.1,0.715]
[1720650695459,0.6129402,3112.8,3112.0,2.3154]
[1720650701772,0.6129402,3112.8,3112.1,0.715]
[1720650702280,0.33657291,3112.8,3112.1,0.715]
[1720650702683,0.33657291,3112.8,3112.3,0.715]
[1720650704008,0.33657291,3112.8,3112.7,0.715]
[1720650707088,0.33657291,3112.8,3112.5,2.4591]
[1720650707288,0.33657291,3112.8,3112.5,3.1741]
[1720650707464,0.33657291,3112.8,3112.5,3.49151]
[1720650711815,0.33657291,3112.8,3112.7,0.715]
[1720650721901,0.33657291,3112.8,3112.5,0.715]
[1720650723940,0.33657291,3112.8,3112.7,3.1334]
[1720650726438,7.44,3113.3,3112.8,2.2761]
[1720650726649,7.44,3113.3,3113.2,2.9911]
[1720650726823,0.33649594,3113.3,3113.2,2.9911]
[1720650727219,0.33649594,3113.3,3113.0,0.715]
[1720650728024,0.33649594,3113.3,3112.8,0.715]
[1720650733368,0.33649594,3113.3,3111.9,2.3753]
[1720650733571,0.33649594,3113.3,3112.0,0.715]
[1720650733572,2.2731,3113.0,3112.0,0.715]
[1720650734192,2.2731,3113.0,3112.2,0.715]
[1720650738670,2.2731,3113.0,3112.4,0.715]
[1720650741805,2.2731,3113.0,3112.2,0.715]
[1720650742005,2.60964243,3113.0,3112.2,0.715]
[1720650742173,3.17060667,3113.0,3112.2,0.715]
[1720650749935,3.17060667,3113.0,3112.4,0.715]
[1720650754020,0.33654243,3113.0,3112.5,2.4906]
[1720650754223,0.33654243,3113.0,3112.6,0.715]
[1720650754435,0.33654243,3113.0,3112.5,2.4906]
[1720650754936,0.33654243,3113.0,3112.4,0.715]
[1720650755133,0.33654243,3113.0,3112.4,1.01923]
[1720650755446,0.33654243,3113.0,3112.4,0.715]
[1720650759151,0.33654243,3113.0,3112.3,0.715]
[1720650759544,0.33654243,3113.0,3112.2,2.3273]
[1720650760178,0.33654243,3113.0,3112.3,0.715]
[1720650762476,2.2707,3112.9,3112.3,0.715]
[1720650765380,2.2707,3112.9,3112.1,0.715]
[1720650766275,2.2707,3112.9,3112.1,1.0191]
[1720650768577,2.2707,3112.9,3111.8,2.326]
[1720650768778,2.2707,3112.9,3112.2,0.715]
[1720650772105,2.2707,3112.9,3112.2,3.041]
[1720650772305,2.2707,3112.9,3112.4,0.715]
[1720650773589,2.2707,3112.9,3112.2,2.326]
[1720650773590,2.4817,3113.3,3112.6,0.715]
[1720650775069,2.4817,3113.3,3112.4,0.715]
[1720650775259,2.4817,3113.3,3112.2,2.326]
[1720650775462,2.4817,3113.3,3112.3,0.715]
[1720650777904,2.4817,3113.3,3112.5,0.715]
[1720650778103,3.62692,3113.3,3112.5,0.715]
[1720650779870,2.4817,3113.3,3112.6,2.3406]
[1720650780073,2.4817,3113.3,3112.5,0.715]
[1720650780269,2.4817,3113.3,3112.3,0.715]
[1720650780885,3.1967,3113.3,3112.3,0.715]
[1720650781090,4.26037,3113.3,3112.3,0.715]
[1720650781598,2.4517,3113.2,3112.3,0.715]
[1720650788472,2.4517,3113.2,3112.1,3.715]
[1720650789209,2.4517,3113.2,3112.3,0.715]
[1720650791831,2.4059,3113.0,3111.8,2.3672]
[1720650792132,0.715,3112.7,3111.5,3.03768359]
[1720650792312,2.4059,3112.6,3111.6,0.715]
[1720650792506,2.71799,3112.6,3111.6,0.715]
[1720650792709,2.71799,3112.6,3111.5,2.3672]
[1720650792908,2.71799,3112.6,3111.7,0.715]
[1720650793305,2.71799,3112.6,3111.5,0.715]
[1720650793306,3.1209,3112.5,3111.5,0.715]
[1720650793531,2.4059,3112.5,3111.5,0.715]
[1720650793730,2.4059,3112.5,3111.7,0.715]
[1720650793731,0.271799,3112.4,3111.7,0.715]
[1720650794121,0.271799,3112.4,3111.1,2.3672]
[1720650794338,0.271799,3112.4,3111.6,0.715]
[1720650795947,2.4059,3112.3,3111.6,0.715]
[1720650796556,3.1209,3112.3,3111.1,2.3672]
[1720650796736,3.0,3112.6,3111.1,0.715]
[1720650796737,2.4059,3112.0,3111.1,0.715]
[1720650797226,2.4059,3112.0,3111.0,2.01213438]
[1720650797417,0.31209,3111.9,3111.0,2.72713438]
[1720650798038,0.715,3111.7,3111.0,2.01213438]
[1720650798238,3.715,3111.7,3111.0,2.01213438]
[1720650798432,3.0,3111.7,3111.0,2.01213438]
[1720650798632,5.499,3111.8,3111.0,2.01213438]
[1720650799343,5.499,3111.8,3110.8,0.715]
[1720650799644,0.65506489,3111.7,3110.8,0.715]
[1720650799854,3.65506489,3111.7,3110.8,0.715]
[1720650802420,3.65506489,3111.7,3110.1,0.29952]
[1720650802421,2.261,3111.6,3110.2,2.4545]
[1720650802625,5.261,3111.6,3110.7,0.715]
[1720650802950,0.66310649,3111.5,3110.7,0.715]
[1720650813331,5.261,3111.6,3110.7,0.715]
[1720650825470,2.4358,3111.5,3110.2,2.3291]
[1720650825678,2.4358,3111.5,3110.6,0.715]
[1720650826560,2.4358,3111.5,3110.2,2.3291]
[1720650826561,2.4358,3111.5,3110.8,0.715]
[1720650828400,3.05088,3111.5,3110.8,0.715]
[1720650833918,3.05088,3111.5,3110.7,2.4353]
[1720650833919,2.4358,3111.5,3111.0,0.715]
[1720650834103,10.44,3112.1,3111.2,0.715]
[1720650834274,2.2863,3111.9,3111.2,0.715]
[1720650834774,2.2863,3111.9,3111.1,2.4253]
[1720650835007,0.52863,3111.8,3111.1,2.4253]
[1720650835220,3.0,3111.8,3111.1,2.4253]
[1720650835510,2.2863,3111.9,3111.1,2.4253]
[1720650842794,0.33643794,3111.8,3111.1,2.4253]
[1720650842986,3.33643794,3111.8,3111.1,2.4253]
[1720650844920,0.33643794,3111.8,3111.2,0.715]
[1720650845080,0.33643794,3111.8,3111.4,0.715]
[1720650845288,0.33643794,3111.8,3111.5,2.4369]
[1720650845482,0.33643794,3111.8,3111.6,1.03019]
[1720650845697,0.33643794,3111.8,3111.7,2.4234]
[1720650848607,0.33643794,3111.8,3110.9,1.67856862]
[1720650848807,0.33643794,3111.8,3111.2,0.715]
[1720650849923,0.33643794,3111.8,3111.4,0.715]
[1720650850221,0.33643794,3111.8,3111.5,0.30082]
[1720650852237,0.33643794,3111.8,3111.6,3.1802]
[1720650852537,0.33643794,3111.8,3111.7,2.4652]
[1720650858952,0.33643794,3111.8,3111.6,0.715]
[1720650859869,0.33643794,3111.8,3111.2,3.0729]
[1720650862734,0.33643794,3111.8,3111.4,0.715]
[1720650870811,0.33643794,3111.8,3111.2,3.38019]
[1720650871012,0.33643794,3111.8,3111.2,3.0729]
[1720650871669,2.379,3111.7,3110.7,2.4263]
[1720650871873,2.379,3111.7,3111.1,0.715]
[1720650873779,2.379,3111.7,3111.3,0.715]
[1720650874093,0.33643794,3111.8,3111.5,0.715]
[1720650874388,0.33643794,3111.8,3111.7,2.9746]
[1720650874970,0.33643794,3111.8,3111.5,0.715]
[1720650876088,0.60116173,3111.8,3111.3,3.1784]
[1720650876297,0.33643794,3111.8,3111.3,3.1784]
[1720650876467,0.33643794,3111.8,3111.5,0.715]
[1720650880965,0.33643794,3111.8,3111.3,2.4634]
[1720650880966,0.33643794,3111.8,3111.3,3.1784]
[1720650881160,0.33643794,3111.8,3111.3,0.715]
[1720650883297,7.44,3112.1,3111.3,0.715]
[1720650883493,1.36280603,3112.0,3111.3,0.715]
[1720650883674,0.98168,3112.0,3111.3,0.715]
[1720650884465,2.7456242,3111.9,3111.0,2.3719]
[1720650884665,0.38117908,3111.8,3110.8,0.715]
[1720650885100,2.3237,3111.7,3110.8,0.715]
[1720650885396,1.02316699,3111.6,3110.8,0.715]
[1720650885571,0.64198791,3111.6,3110.8,0.715]
[1720650885767,0.33637742,3112.0,3111.5,0.715]
[1720650885965,0.33637742,3112.0,3110.4,0.66982106]
[1720650885966,0.33637742,3112.0,3111.6,2.8787]
[1720650886385,7.44,3112.7,3111.6,2.8787]
[1720650886583,2.3921,3112.9,3112.2,0.715]
[1720650886796,0.38070926,3112.8,3112.2,0.715]
[1720650886996,7.44,3113.1,3112.2,0.715]
[1720650887210,0.715,3112.8,3111.6,2.3287]
[1720650887504,0.715,3112.8,3111.7,0.715]
[1720650887722,3.715,3113.0,3111.9,0.715]
[1720650888503,0.715,3112.6,3111.6,2.3287]
[1720650888777,3.0,3113.0,3111.6,2.3287]
[1720650889082,1.1611167,3112.9,3111.6,2.3287]
[1720650890300,2.374,3112.8,3111.6,2.3287]
[1720650890702,5.374,3112.8,3111.6,2.3287]
[1720650891278,5.374,3112.8,3111.1,2.2565]
[1720650891503,5.374,3112.8,3111.2,0.55]
[1720650891819,0.68715315,3112.7,3111.3,0.28065]
[1720650892004,3.68715315,3112.7,3111.3,0.28065]
[1720650895180,3.68715315,3112.7,3111.4,2.3702]
[1720650900811,2.3284,3112.6,3111.4,2.3702]
[1720650901008,5.3284,3112.6,3111.4,2.3702]
[1720650901222,0.60155532,3112.5,3111.4,2.3702]
[1720650901427,3.60155532,3112.5,3111.4,2.3702]
[1720650902105,2.4611,3112.4,3110.6,1.6787959]
[1720650902300,2.4747,3112.0,3110.0,0.67094686]
[1720650902491,0.41917,3111.9,3110.1,3.10523486]
[1720650902730,3.41917,3111.9,3110.3,1.717]
[1720650902930,3.0,3111.9,3110.4,5.25825663]
[1720650903148,0.92395532,3112.5,3110.7,1.717]
[1720650903877,2.2705,3112.4,3110.7,1.717]
[1720650904165,5.2705,3112.4,3110.7,1.717]
[1720650904374,5.2705,3112.4,3110.8,2.4601]
[1720650904666,0.61944553,3112.3,3110.8,2.4601]
[1720650905262,3.61944553,3112.3,3110.8,2.4601]
[1720650907150,3.0,3112.2,3110.8,2.4601]
[1720650907354,0.61944553,3112.3,3110.8,2.4601]
[1720650907530,0.92395532,3112.5,3110.8,2.4601]
[1720650907732,1.26036108,3112.5,3110.8,2.4601]
[1720650908222,0.93796108,3112.5,3110.8,2.4601]
[1720650909818,0.33640576,3112.5,3110.8,2.3843]
[1720650910019,0.33640576,3112.5,3110.7,4.93162]
[1720650910020,0.33640576,3112.5,3111.2,2.3843]
[1720650910331,3.0,3112.6,3111.2,2.3843]
[1720650914782,0.716,3112.4,3111.3,0.716]
[1720650914986,0.716,3112.4,3111.3,1.02603]
[1720650916584,3.0,3112.6,3111.3,0.31003]
[1720650917655,3.0,3112.6,3111.4,2.3715]
[1720650923699,2.3605,3112.5,3111.4,2.3715]
[1720650924019,2.6829,3112.5,3111.4,2.3715]
[1720650924298,3.0,3112.4,3111.4,2.3715]
[1720650931405,3.3224,3112.4,3111.4,2.3715]
[1720650931599,0.89069,3112.3,3111.4,2.3715]
[1720650938594,0.716,3111.9,3111.4,2.3715]
[1720650942757,0.3363825,3111.8,3111.4,2.3715]
[1720650947439,0.716,3111.7,3111.4,2.3715]
[1720650950174,0.3363825,3111.8,3111.4,2.3715]
[1720650955488,0.716,3111.7,3111.4,2.3715]
[1720650958500,0.3363825,3111.8,3111.4,2.3715]
[1720650958652,1.0523825,3111.8,3111.4,2.3715]
[1720650959053,0.716,3111.6,3111.4,2.3715]
[1720650961580,0.3363825,3111.8,3111.4,2.3715]
[1720650964164,0.3363825,3111.8,3111.4,2.1784]
[1720650966297,1.0523825,3111.8,3111.4,2.1784]
[1720650968398,0.716,3111.6,3111.4,2.1784]
[1720650968984,0.716,3111.6,3110.1,0.30672469]
[1720650968985,0.716,3111.6,3110.2,3.1475]
[1720650969292,0.716,3111.6,3110.5,2.4315]
[1720650969493,0.716,3111.6,3110.7,2.4315]
[1720650970798,0.716,3111.4,3110.7,2.4315]
[1720650971505,0.3363209,3111.3,3110.7,2.4315]
[1720650979353,0.716,3111.6,3110.7,2.4315]
[1720650979572,0.3716,3111.5,3110.7,2.4315]
[1720650993385,0.52851314,3111.5,3110.7,2.4315]
[1720650994496,0.716,3111.2,3110.7,2.4315]
[1720650995751,0.716,3111.4,3110.7,2.4315]
[1720650995980,1.24451314,3111.5,3110.7,2.4315]
[1720650999353,0.716,3111.3,3110.7,2.4315]
[1720651001650,1.24451314,3111.5,3110.7,2.4315]
[1720651007390,0.38158886,3111.4,3110.7,2.4315]
[1720651007594,0.54419906,3111.4,3110.7,2.4315]
[1720651009351,0.1626102,3111.4,3110.7,2.4315]
[1720651009567,0.54419825,3111.4,3110.7,2.4315]
[1720651013124,0.38157776,3111.3,3110.7,2.4315]
[1720651013322,0.38157776,3111.2,3110.7,2.4315]
[1720651013487,0.38157776,3111.1,3110.7,2.4315]
[1720651013674,0.38157776,3111.0,3110.7,2.4315]
[1720651013875,0.38157776,3110.9,3110.7,2.4315]
[1720651014199,0.38157776,3110.8,3110.7,2.4315]
[1720651014413,0.38157776,3111.3,3110.7,2.4315]
[1720651014580,4.30444787,3111.3,3110.7,2.4315]
[1720651014778,0.38157776,3111.2,3110.7,2.4315]
[1720651016538,0.38158318,3111.1,3110.7,2.4315]
[1720651016803,0.38158318,3111.0,3110.7,2.4315]
[1720651017042,0.38158318,3110.9,3110.7,2.4315]
[1720651017243,0.38158318,3110.8,3110.7,2.4315]
[1720651017953,0.38158318,3111.2,3110.7,2.4315]
[1720651018102,1.64388953,3111.2,3110.7,2.4315]
[1720651018303,0.38158318,3111.1,3110.7,2.4315]
[1720651019225,0.38158318,3111.1,3109.8,0.67573633]
[1720651019226,0.38158318,3111.1,3111.0,0.716]
[1720651019527,7.44,3111.4,3111.1,2.2605]
[1720651020810,7.44,3111.4,3111.3,2.9765]
[1720651021064,7.44,3111.4,3111.3,3.27415]
[1720651022302,7.44,3111.4,3111.3,2.2605]
[1720651024652,7.44,3111.9,3111.3,2.2605]
[1720651024847,0.716,3112.1,3111.3,2.2605]
[1720651025203,7.44,3112.2,3111.3,2.2605]
[1720651027833,7.44,3112.2,3111.4,2.3859]
[1720651028156,7.44,3112.2,3111.6,3.1019]
[1720651028313,7.44,3112.2,3111.7,2.3859]
[1720651030376,8.156,3112.2,3111.3,2.3207]
[1720651030509,0.716,3112.0,3111.3,2.3207]
[1720651030856,1.5316,3112.0,3111.3,2.3207]
[1720651031364,0.8156,3112.0,3111.3,2.3207]
[1720651032359,3.0,3112.1,3111.3,2.3207]
[1720651032854,0.33633227,3111.9,3111.3,2.3207]
[1720651035447,0.33525472,3111.9,3111.4,0.716]
[1720651035646,0.33525472,3111.9,3111.5,2.2821]
[1720651045673,0.33525472,3111.9,3111.1,2.3429]
[1720651045883,0.716,3111.8,3111.1,2.3429]
[1720651050278,0.716,3111.8,3111.1,2.0066]
[1720651053891,0.716,3111.8,3110.8,0.716]
[1720651054139,0.716,3111.6,3110.7,2.4204]
[1720651054426,0.30362,3111.5,3110.7,2.4204]
[1720651057695,0.30362,3111.5,3110.7,3.1364]
[1720651065228,0.30362,3111.5,3110.7,2.4204]
[1720651082080,3.0,3111.6,3110.7,2.4204]
[1720651082252,3.0,3111.6,3110.9,0.716]
[1720651083629,3.0,3111.6,3110.8,2.3922]
[1720651088878,2.4329,3111.5,3110.6,2.3729]
[1720651089171,0.61489,3111.4,3110.6,2.3729]
[1720651089365,3.61489,3111.4,3110.6,2.3729]
[1720651091447,3.0,3111.4,3110.6,2.3729]
[1720651091687,5.4428,3111.6,3110.7,0.716]
[1720651095783,6.1588,3111.6,3110.6,2.3729]
[1720651099567,2.2511,3111.5,3110.6,2.3729]
[1720651099762,5.2511,3111.5,3110.6,2.3729]
[1720651100178,0.59671,3111.4,3110.6,2.3729]
[1720651100492,3.59671,3111.4,3110.6,2.3729]
[1720651114507,3.59671,3111.4,3110.3,2.3595]
[1720651114508,2.4904,3111.3,3110.3,2.3595]
[1720651114686,5.4904,3111.3,3110.4,0.716]
[1720651115011,0.908711,3111.2,3110.4,0.716]
[1720651129154,3.0,3111.3,3110.6,0.716]
[1720651129320,3.0,3111.6,3110.6,0.716]
[1720651135659,3.0,3111.6,3110.7,2.4142]
[1720651135835,1.1156,3111.5,3110.7,2.4142]
[1720651137051,8.156,3111.7,3111.1,2.3372]
[1720651137052,7.44,3111.7,3111.1,2.3372]
[1720651137219,7.44,3111.7,3111.4,0.716]
[1720651137575,7.44,3112.1,3111.5,2.3444]
[1720651140564,7.44,3112.4,3111.5,2.3444]
[1720651140762,3.0,3112.3,3111.5,2.3444]
[1720651141826,3.716,3112.3,3111.5,2.3444]
[1720651142238,3.0,3112.3,3111.5,2.3444]
[1720651142862,3.0,3112.3,3111.6,0.716]
[1720651143032,3.0,3112.3,3111.7,2.2934]
[1720651143446,3.0,3112.3,3111.7,2.59434]
[1720651147173,7.44,3112.4,3111.7,2.59434]
[1720651152284,7.44,3112.4,3111.7,2.65860646]
[1720651153092,7.44,3112.4,3111.7,2.59434]
[1720651153285,7.44,3112.4,3111.8,0.716]
[1720651153498,7.44,3112.4,3112.0,2.497]
[1720651157908,7.44,3112.8,3112.0,2.4301]
[1720651158203,7.44,3112.8,3112.4,2.4301]
[1720651158404,7.44,3113.2,3112.4,2.4301]
[1720651159477,3.0,3113.1,3112.4,2.4301]
[1720651162791,3.0,3113.1,3112.4,2.74471]
[1720651167228,3.0,3113.1,3112.4,2.4301]
[1720651167393,3.2029,3113.0,3112.4,2.4301]
[1720651168520,0.716,3113.0,3112.4,2.4301]
[1720651169350,3.0,3113.1,3112.4,2.4301]
[1720651171584,0.716,3113.0,3112.4,2.4301]
[1720651171869,0.3716,3112.9,3112.4,2.4301]
[1720651173577,3.0,3113.1,3112.4,3.1461]
[1720651173729,3.0,3113.1,3112.5,2.3931]
[1720651176883,7.44,3113.2,3112.7,2.4801]
[1720651179290,0.716,3113.5,3112.7,2.4801]
[1720651179291,8.156,3113.5,3112.7,2.4801]
[1720651179496,3.0,3113.4,3112.7,2.4801]
[1720651179901,3.0,3113.4,3112.7,2.86395565]
[1720651180115,3.0,3113.4,3112.9,2.2583]
[1720651180319,7.44,3113.5,3112.9,2.2583]
[1720651180522,0.716,3113.8,3113.3,2.3475]
[1720651180523,7.44,3113.8,3113.3,2.3475]
[1720651180820,7.44,3114.1,3113.7,2.3475]
[1720651181005,12.47,3114.6,3113.7,2.3475]
[1720651181006,7.44,3114.5,3113.7,2.3475]
[1720651181220,7.44,3114.5,3113.9,0.716]
[1720651181438,7.44,3114.5,3113.7,2.3475]
[1720651181596,9.431,3114.5,3113.7,2.3475]
[1720651182443,0.716,3114.2,3113.2,0.716]
[1720651182655,2.6870934,3114.4,3112.9,2.2673]
[1720651182656,0.716,3114.0,3112.9,2.2673]
[1720651182941,8.156,3114.0,3113.1,0.716]
[1720651183097,8.156,3114.0,3113.2,2.4549]
[1720651184131,7.44,3114.0,3113.2,2.4549]
[1720651187840,8.156,3114.0,3113.2,2.4549]
[1720651188037,0.716,3113.8,3113.2,2.4549]
[1720651188212,0.716,3113.6,3113.2,2.4549]
[1720651188901,0.716,3113.8,3113.2,2.4549]
[1720651192528,3.8156,3113.9,3113.2,3.1709]
[1720651192737,3.8156,3113.9,3113.2,2.4549]
[1720651192913,1.12556,3113.8,3113.2,2.4549]
[1720651193935,1.12556,3113.8,3113.2,0.716]
[1720651194153,3.8156,3113.9,3113.3,2.2755]
[1720651195926,4.5316,3113.9,3113.3,2.2755]
[1720651196231,0.3804429,3113.8,3113.3,2.2755]
[1720651196645,0.716,3113.4,3113.0,2.2983]
[1720651196963,0.716,3113.4,3112.5,2.2983]
[1720651197137,0.716,3113.4,3112.6,0.30143]
[1720651198457,7.44,3113.5,3113.2,2.3489]
[1720651203078,0.716,3113.8,3113.2,2.3489]
[1720651203242,0.38042943,3113.7,3113.2,2.3489]
[1720651203445,22.91,3113.9,3113.2,2.3489]
[1720651203627,0.38045494,3113.8,3113.2,2.3489]
[1720651203830,2.78110043,3113.8,3113.2,2.3489]
[1720651204047,3.38045155,3113.7,3113.2,2.3489]
[1720651204344,3.0,3113.7,3113.2,2.3489]
[1720651204592,5.40064549,3113.8,3113.2,2.3489]
[1720651204798,0.38043477,3113.7,3113.2,2.3489]
[1720651204942,3.38043477,3113.7,3113.2,2.3489]
[1720651205144,5.86910803,3113.7,3112.3,2.3705]
[1720651205392,1.09649852,3113.6,3112.6,0.716]
[1720651205545,0.38049852,3113.5,3112.6,0.716]
[1720651206357,1.07705918,3113.5,3112.3,2.3705]
[1720651206687,0.38049852,3113.4,3112.4,0.716]
[1720651206884,0.38049852,3113.4,3112.7,2.4494]
[1720651207045,1.09649852,3113.4,3112.4,3.1654]
[1720651207245,0.38049852,3113.3,3112.4,3.1654]
[1720651207478,7.44,3113.4,3112.5,0.31654]
[1720651207676,7.44,3113.4,3112.6,0.716]
[1720651208274,7.44,3113.4,3112.8,0.716]
[1720651209984,7.44,3113.4,3113.0,0.716]
[1720651210218,6.85171944,3113.4,3113.0,0.716]
[1720651212093,3.0,3113.7,3113.0,0.716]
[1720651212569,3.0,3113.7,3113.1,2.4663]
[1720651212785,6.85171944,3113.8,3113.2,0.31823]
[1720651213768,6.85171944,3113.8,3113.3,0.716]